bitfinex-derivatives/quotes_ETHF0:USTF0_20251003
["timestamp","ask_amount","ask_price","bid_price","bid_amount"]
[1759491159044,0.8902,4481.0,4480.9,2.14396639]
[1759491159244,0.7616,4481.0,4480.9,2.14396639]
[1759491159446,0.5434,4481.0,4480.9,2.14396639]
[1759491160141,0.5434,4481.0,4480.9,0.9442]
[1759491160343,0.5434,4481.0,4480.9,1.34562]
[1759491160647,0.5434,4481.0,4480.9,0.9442]
[1759491161047,0.5434,4481.0,4480.9,1.34562]
[1759491161448,0.5434,4481.0,4480.9,0.9442]
[1759491162245,0.5434,4481.0,4480.9,1.34562]
[1759491162447,0.5434,4481.0,4480.9,0.9442]
[1759491164248,0.5434,4481.0,4480.9,1.34562]
[1759491164949,0.5434,4481.0,4480.9,0.9442]
[1759491165748,0.5434,4481.0,4480.9,1.34562]
[1759491165941,0.5434,4481.0,4480.9,1.12062]
[1759491166144,0.5434,4481.0,4480.9,1.34562]
[1759491166357,0.1256,4481.5,4480.9,1.34562]
[1759491166551,0.5359,4481.5,4481.4,0.4422]
[1759491166852,0.7399,4481.5,4481.4,0.9918]
[1759491167352,0.8685,4481.5,4481.4,0.9918]
[1759491167653,0.8685,4481.5,4481.4,0.7668]
[1759491167953,0.8685,4481.5,4481.4,0.9918]
[1759491168153,1.32439573,4481.5,4481.4,0.7668]
[1759491168354,0.8685,4481.5,4481.4,0.9918]
[1759491168654,1.32441053,4481.5,4481.4,0.9918]
[1759491171250,1.32441053,4481.5,4481.4,0.7668]
[1759491171456,1.32441053,4481.5,4481.4,0.225]
[1759491172051,1.00651053,4481.5,4481.0,1.2035376]
[1759491172255,0.7399,4481.2,4481.1,0.7719]
[1759491172456,3.9477,4481.2,4481.1,0.5469]
[1759491172657,0.7399,4481.1,4481.0,1.2035376]
[1759491172859,0.7399,4481.1,4481.0,1.4285376]
[1759491174361,0.7399,4481.1,4481.0,1.7504376]
[1759491174851,0.7399,4481.1,4481.0,1.9754376]
[1759491177255,0.7399,4481.1,4481.0,1.7504376]
[1759491177651,0.7399,4481.1,4481.0,1.6508376]
[1759491177847,0.7399,4481.1,4481.0,1.4285376]
[1759491178452,0.7399,4481.1,4481.0,0.5496]
[1759491178658,0.7399,4481.1,4481.0,0.3246]
[1759491178859,0.7399,4481.1,4481.0,0.5496]
[1759491179160,0.7399,4481.1,4481.0,0.225]
[1759491179561,0.422,4480.9,4480.8,1.2035376]
[1759491179761,0.3179,4480.8,4480.7,1.20592656]
[1759491180058,0.7399,4480.8,4480.7,1.43092656]
[1759491180655,0.7399,4480.8,4480.7,0.22738896]
[1759491180956,5.87802146,4480.8,4480.3,1.2035376]
[1759491181151,1.14138,4480.2,4480.0,1.2035376]
[1759491181356,1.14144,4479.6,4479.4,1.2035376]
[1759491181662,4.34924,4479.6,4479.5,0.225]
[1759491182055,4.35192285,4479.6,4479.5,0.22753176]
[1759491182459,4.35192285,4479.6,4479.5,0.00253176]
[1759491182762,4.35192285,4479.6,4479.5,0.22753176]
[1759491182963,4.35192285,4479.6,4479.5,0.00253176]
[1759491183463,4.35192285,4479.6,4479.5,0.22753176]
[1759491183676,4.35192285,4479.6,4479.5,0.00253176]
[1759491183873,9.35192285,4479.6,4479.5,0.00253176]
[1759491184174,9.80667264,4479.6,4479.5,0.00253176]
[1759491184368,9.35192285,4479.6,4479.5,0.00253176]
[1759491187474,4.35192285,4479.6,4479.5,0.00253176]
[1759491188171,1.15262,4478.6,4478.5,0.7528]
[1759491188367,1.15262,4478.6,4478.5,0.9778]
[1759491188568,1.15262,4478.6,4478.5,0.7528]
[1759491188762,1.15262,4478.6,4478.5,0.9778]
[1759491189174,1.15262,4478.6,4478.5,0.97952272]
[1759491189363,1.15262,4478.6,4478.5,0.75452272]
[1759491190173,1.15262,4478.6,4478.5,0.97952272]
[1759491191468,1.15262,4478.6,4478.5,1.10932272]
[1759491191672,0.40162,4478.6,4478.5,1.10932272]
[1759491192072,0.60802,4478.6,4478.5,1.10932272]
[1759491192274,0.94022,4478.6,4478.5,1.10932272]
[1759491197277,1.15262,4478.6,4478.5,1.51095272]
[1759491197680,1.15262,4478.6,4478.5,1.10932272]
[1759491198975,1.15262,4478.6,4478.5,0.97952272]
[1759491201382,1.15262,4478.6,4478.5,0.75452272]
[1759491201684,1.15262,4478.6,4478.5,0.97952272]
[1759491203978,1.15262,4478.6,4478.5,0.77322272]
[1759491204179,1.15262,4478.6,4478.5,0.00172272]
[1759491206977,0.40162,4478.6,4478.5,0.88112272]
[1759491207181,3.2078,4478.8,4478.7,1.14502]
[1759491207182,0.40161,4478.8,4478.7,1.14502]
[1759491208484,0.40161,4478.8,4478.7,0.7434]
[1759491211687,0.40161,4478.8,4478.7,1.14502]
[1759491211992,0.4016,4478.9,4478.8,1.144]
[1759491212193,0.4016,4478.9,4478.8,0.9674]
[1759491213186,0.9315,4478.9,4478.8,0.9674]
[1759491214394,1.1431,4478.9,4478.8,0.7424]
[1759491214694,1.1431,4478.9,4478.8,0.9674]
[1759491217698,0.6208,4478.9,4478.8,0.9674]
[1759491218792,0.9315,4478.9,4478.8,0.9674]
[1759491222593,0.4016,4478.9,4478.8,1.36901]
[1759491222890,0.4016,4478.9,4478.8,0.9674]
[1759491224496,0.6208,4478.9,4478.8,0.9674]
[1759491224702,0.9315,4478.9,4478.8,0.9674]
[1759491231703,0.9315,4478.9,4478.8,1.36901]
[1759491232898,0.6208,4478.9,4478.8,1.36901]
[1759491233301,0.9315,4478.9,4478.8,1.36901]
[1759491234008,0.3107,4479.2,4478.8,0.9674]
[1759491234299,0.93147,4479.2,4479.1,0.7424]
[1759491235102,0.93147,4479.2,4479.1,1.14398]
[1759491235304,1.14307,4479.2,4479.1,1.14398]
[1759491235703,0.2192,4479.2,4479.1,1.14398]
[1759491235902,0.00268285,4479.6,4479.5,1.26994]
[1759491236106,0.00268285,4479.6,4479.5,1.49494]
[1759491237107,0.00268285,4479.6,4479.5,8.10027732]
[1759491237307,0.00268285,4479.6,4479.5,8.09797197]
[1759491238003,0.00268285,4479.6,4479.5,6.49494]
[1759491240104,0.74418285,4479.6,4479.5,1.26994]
[1759491240306,0.74418285,4479.6,4479.5,1.36894]
[1759491241403,0.74418285,4479.6,4479.2,3.2078]
[1759491241404,0.93146,4479.3,4479.2,3.2078]
[1759491241610,0.93146,4479.3,4479.2,0.225]
[1759491241611,0.7415,4479.3,4479.2,0.225]
[1759491241806,0.8086,4478.9,4478.8,0.3116]
[1759491242011,1.1384,4478.9,4478.8,0.5366]
[1759491242405,0.7368,4478.9,4478.8,0.5366]
[1759491242614,0.7368,4478.9,4478.8,0.7469]
[1759491242804,0.7368,4478.9,4478.8,0.4353]
[1759491244005,3.73579,4479.0,4478.5,0.31302272]
[1759491244006,0.7368,4478.6,4478.5,0.00172272]
[1759491244210,0.7368,4478.6,4478.5,0.22672272]
[1759491244609,0.7368,4478.6,4478.5,0.00172272]
[1759491244814,0.7368,4478.6,4478.5,0.52332272]
[1759491245013,0.7368,4478.6,4478.5,0.74832272]
[1759491245213,0.7368,4478.6,4478.5,0.43702272]
[1759491245604,0.7368,4478.6,4478.5,0.21202272]
[1759491245809,0.7368,4478.6,4478.5,0.22672272]
[1759491246009,0.7368,4478.6,4478.5,0.00172272]
[1759491246211,0.7368,4478.6,4478.5,0.22672272]
[1759491247806,0.7368,4478.6,4478.5,0.00172272]
[1759491248009,0.7368,4478.6,4478.5,0.22672272]
[1759491248416,0.7368,4478.6,4478.5,0.00172272]
[1759491252617,1.13842,4478.6,4478.5,0.00172272]
[1759491258324,1.26488,4478.0,4477.9,0.02233215]
[1759491258620,4.47268,4478.0,4477.9,0.02233215]
[1759491259313,4.47268,4478.0,4477.9,0.02469282]
[1759491260325,4.47268,4478.0,4477.9,0.23499282]
[1759491260626,4.47268,4478.0,4477.9,0.54629282]
[1759491262223,3.81388,4478.0,4477.9,1.15228282]
[1759491262525,3.2078,4478.0,4477.9,6.37728282]
[1759491263814,3.2078,4478.0,4477.9,6.15228282]
[1759491264017,3.9446,4478.0,4477.9,0.75059282]
[1759491264228,3.9446,4478.0,4477.9,1.37728282]
[1759491264229,4.34628,4478.0,4477.9,1.37728282]
[1759491265128,4.34628,4478.0,4477.9,1.15228282]
[1759491265320,4.34628,4478.0,4477.9,1.37728282]
[1759491269126,3.742,4478.0,4477.9,1.37728282]
[1759491269327,3.4122,4478.0,4477.9,1.37728282]
[1759491270333,3.2078,4478.0,4477.9,1.37728282]
[1759491271232,3.7419,4478.0,4477.9,1.37728282]
[1759491271428,3.9541,4478.0,4477.9,1.15228282]
[1759491271628,3.9541,4478.0,4477.9,1.37728282]
[1759491271825,3.9541,4478.0,4477.9,1.15228282]
[1759491272032,4.35578,4478.0,4477.9,1.37728282]
[1759491272422,3.9541,4478.0,4477.9,1.37728282]
[1759491273334,3.9541,4478.0,4477.9,1.15228282]
[1759491273628,3.2078,4478.5,4478.3,0.3239]
[1759491273835,3.2078,4478.5,4478.1,1.00417]
[1759491273836,3.2078,4478.5,4478.4,2.17597012]
[1759491274036,3.2078,4478.5,4478.4,2.57761012]
[1759491274237,3.4306,4478.5,4478.4,2.57761012]
[1759491274539,3.4306,4478.5,4478.4,1.37424]
[1759491275135,3.739,4478.5,4478.4,1.37424]
[1759491276033,0.5312,4478.8,4478.7,0.40162]
[1759491276234,0.93279,4479.0,4478.9,0.4237]
[1759491276530,0.7369,4479.0,4478.9,1.3742]
[1759491277438,0.5312,4479.0,4478.9,1.3742]
[1759491277632,3.2078,4479.2,4478.9,1.3742]
[1759491277633,3.2078,4479.2,4479.1,1.14918]
[1759491280037,0.53388285,4479.6,4479.5,1.14914]
[1759491280235,0.53388285,4479.6,4479.5,1.37414]
[1759491280739,0.53388285,4479.6,4479.5,1.49644]
[1759491281734,0.73958285,4479.6,4479.5,1.37414]
[1759491282133,0.73958285,4479.6,4479.1,40.8]
[1759491282134,0.4285,4479.4,4479.3,1.82513145]
[1759491282328,0.7369,4479.4,4479.3,1.17246]
[1759491282841,0.7369,4479.3,4479.2,1.20157145]
[1759491283034,0.7369,4479.3,4478.4,4.21191]
[1759491283035,0.7369,4479.1,4479.0,1.20157145]
[1759491283344,1.26839,4479.0,4478.9,1.20157145]
[1759491283837,1.26839,4479.0,4478.8,1.20157145]
[1759491283838,0.95999,4479.0,4478.8,1.20157145]
[1759491284140,0.7369,4478.7,4478.6,1.60319145]
[1759491284342,0.7369,4478.7,4478.6,2.05019145]
[1759491284943,0.7369,4478.7,4478.6,1.42357145]
[1759491285143,0.7369,4478.7,4478.6,1.42657145]
[1759491285542,0.7369,4478.7,4478.6,1.64857145]
[1759491285743,0.7369,4478.7,4478.6,1.97247145]
[1759491287242,0.7369,4478.7,4478.6,1.74747145]
[1759491287543,0.7369,4478.7,4478.6,1.97247145]
[1759491287942,0.7369,4478.7,4478.6,0.7709]
[1759491288845,1.13852,4478.7,4478.6,0.7709]
[1759491290348,1.13852,4478.7,4478.6,1.17252]
[1759491291447,0.7369,4478.7,4478.6,1.37422]
[1759491292045,1.13852,4478.7,4478.6,1.37422]
[1759491293952,0.7369,4478.7,4478.6,1.37422]
[1759491294253,1.13852,4478.7,4478.6,1.37422]
[1759491294955,0.7369,4478.7,4478.6,1.37422]
[1759491295250,0.5312,4478.7,4478.6,1.37422]
[1759491295454,0.2228,4478.7,4478.6,1.37422]
[1759491296551,1.13852,4478.7,4478.6,0.9726]
[1759491297748,1.13852,4478.7,4478.6,0.222]
[1759491297953,1.13855,4478.3,4478.2,0.7476]
[1759491298150,1.13855,4478.3,4478.2,1.37426]
[1759491299450,0.7369,4478.3,4478.2,1.37426]
[1759491299656,1.13855,4478.3,4478.2,1.37426]
[1759491299864,1.13855,4478.3,4478.2,1.14926]
[1759491300064,1.13855,4478.3,4478.2,1.37426]
[1759491301055,1.13855,4478.3,4478.2,1.14926]
[1759491301258,1.13855,4478.3,4478.2,1.37426]
[1759491301462,1.13855,4478.3,4478.2,1.14926]
[1759491301661,0.8668,4478.0,4477.9,3.45449282]
[1759491301868,1.26848,4478.0,4477.9,3.77839282]
[1759491302069,1.26848,4478.0,4477.9,4.00339282]
[1759491302667,1.26848,4478.0,4477.9,4.40508282]
[1759491303167,1.26848,4478.0,4477.9,0.24969282]
[1759491303356,1.26848,4478.0,4477.9,1.45223857]
[1759491303560,1.26848,4478.0,4477.9,0.24969282]
[1759491304974,1.26848,4478.0,4477.9,1.18428282]
[1759491305174,1.26848,4478.0,4477.9,1.98513857]
[1759491305374,1.26848,4478.0,4477.9,0.78259282]
[1759491306176,1.13858,4478.0,4477.9,0.98929282]
[1759491307074,1.13858,4478.0,4477.9,1.39098282]
[1759491307476,1.13858,4478.0,4477.9,0.98929282]
[1759491307667,1.13858,4478.0,4477.9,1.39098282]
[1759491308072,1.13858,4478.0,4477.9,2.59352857]
[1759491311978,1.13858,4478.0,4477.9,2.19183857]
[1759491313978,1.13858,4478.0,4477.9,2.59352857]
[1759491314682,1.13858,4478.0,4477.9,2.36852857]
[1759491314876,1.13858,4478.0,4477.9,2.59352857]
[1759491315074,1.13858,4478.0,4477.9,2.19183857]
[1759491318683,1.26618,4478.0,4477.9,1.22723857]
[1759491318886,1.26618,4478.0,4477.9,0.24969282]
[1759491319479,1.26618,4478.0,4477.9,0.02469282]
[1759491319673,1.26618,4478.0,4477.9,0.24969282]
[1759491321681,1.26618,4478.0,4477.9,0.02469282]
[1759491321983,0.93692,4477.5,4477.2,1.20254575]
[1759491322186,1.14094,4477.3,4477.2,1.20254575]
[1759491322386,1.14094,4477.3,4477.2,0.225]
[1759491322791,0.7392,4477.3,4477.1,1.20254575]
[1759491322987,1.14095,4477.2,4477.1,1.20482405]
[1759491323289,1.14095,4477.2,4477.1,1.42982405]
[1759491324191,1.14095,4477.2,4477.1,2.16942405]
[1759491324587,0.7392,4477.2,4477.1,2.16942405]
[1759491325891,0.7392,4477.2,4477.1,1.94442405]
[1759491326091,0.7392,4477.2,4477.1,0.7601783]
[1759491326893,0.7392,4477.2,4477.1,0.0022783]
[1759491327083,0.7392,4477.2,4477.1,0.2272783]
[1759491328285,0.7392,4477.2,4477.1,0.0022783]
[1759491328592,5.7392,4477.2,4477.1,0.0022783]
[1759491329994,6.14095,4477.2,4477.1,0.0022783]
[1759491334096,1.14095,4477.2,4477.1,0.5357783]
[1759491336801,1.14095,4477.2,4477.1,0.7421783]
[1759491337098,0.40175,4477.2,4477.1,0.7421783]
[1759491338296,0.40793,4477.4,4477.3,0.7399]
[1759491338490,0.0062,4477.4,4477.3,1.36664]
[1759491338800,0.93063,4477.5,4477.4,0.7399]
[1759491339301,0.93063,4477.5,4477.4,0.9649]
[1759491341909,3.2078,4477.6,4477.5,0.94842]
[1759491342208,3.7367,4477.6,4477.5,1.0889]
[1759491342801,4.34751,4477.6,4477.5,1.0889]
[1759491343002,4.34751,4477.6,4477.5,0.7399]
[1759491343213,1.13974,4477.3,4477.2,0.2163]
[1759491343405,0.1285,4477.5,4477.1,0.0022783]
[1759491343406,1.13975,4477.2,4477.1,0.0022783]
[1759491343606,1.13975,4477.2,4477.1,0.2272783]
[1759491344411,1.13975,4477.2,4477.1,0.0022783]
[1759491344812,1.13975,4477.2,4477.1,0.2272783]
[1759491348517,1.59690756,4477.2,4477.1,0.0022783]
[1759491355620,1.59690756,4477.2,4477.1,0.7421783]
[1759491355920,1.13975,4477.2,4477.1,0.3194783]
[1759491356128,1.13975,4477.2,4477.1,0.7421783]
[1759491358231,1.13975,4477.2,4477.1,0.9671783]
[1759491359323,1.13975,4477.2,4477.1,1.3689383]
[1759491360421,0.61225,4477.2,4477.1,1.3689383]
[1759491360623,0.93065,4477.2,4477.1,0.9671783]
[1759491361024,1.13975,4477.2,4477.1,0.9671783]
[1759491361923,1.13975,4477.2,4477.1,0.7421783]
[1759491362117,1.13975,4477.2,4477.1,0.9671783]
[1759491363521,1.13975,4477.2,4477.1,0.7421783]
[1759491363818,1.13975,4477.2,4477.1,0.9671783]
[1759491365220,1.13975,4477.2,4477.1,0.7421783]
[1759491365424,1.13975,4477.2,4477.1,0.9671783]
[1759491366226,1.13975,4477.2,4477.1,0.7421783]
[1759491366427,1.13975,4477.2,4477.1,0.9671783]
[1759491367324,1.13975,4477.2,4477.1,0.7421783]
[1759491367521,1.13975,4477.2,4477.1,0.9671783]
[1759491368030,1.13975,4477.2,4477.1,0.7421783]
[1759491368220,1.13975,4477.2,4477.1,0.9671783]
[1759491373531,1.13975,4477.2,4477.1,0.7421783]
[1759491374024,0.738,4477.2,4477.1,1.1439383]
[1759491374323,0.0081,4477.4,4477.3,1.14824]
[1759491374530,3.2078,4478.1,4478.0,0.96068]
[1759491374726,3.2078,4478.1,4478.0,1.50668]
[1759491375034,0.62102,4478.6,4478.5,0.88]
[1759491375224,0.2194,4478.6,4478.5,1.105]
[1759491375424,0.5321,4478.6,4478.5,1.105]
[1759491376028,0.2194,4478.6,4478.5,1.105]
[1759491376234,0.93371,4478.8,4478.7,0.7465]
[1759491376424,3.2078,4479.2,4478.7,0.4255]
[1759491376630,3.60938,4479.2,4479.1,0.7465]
[1759491376824,3.60938,4479.2,4479.1,0.9715]
[1759491377033,3.4272,4479.2,4479.1,0.9715]
[1759491377333,3.2078,4479.2,4479.1,0.9715]
[1759491378037,3.2078,4479.7,4479.5,0.53504]
[1759491378328,3.2078,4479.7,4479.5,1.28154]
[1759491378733,0.7142,4480.0,4479.5,1.28154]
[1759491378932,0.3127,4480.0,4479.5,1.28154]
[1759491379133,0.71421,4480.0,4479.5,1.28154]
[1759491379527,0.40151,4479.9,4479.5,1.28154]
[1759491380732,0.40152,4479.8,4479.5,1.50654]
[1759491380935,0.7142,4480.0,4479.5,1.50654]
[1759491381438,0.40151,4479.9,4479.5,1.50654]
[1759491381835,0.4015,4480.1,4479.5,6.50654]
[1759491382033,0.3127,4480.0,4479.5,5.88]
[1759491382337,0.73658285,4479.6,4479.5,0.7465]
[1759491382532,0.73658285,4479.6,4479.5,0.9715]
[1759491382933,0.00268285,4479.6,4479.5,1.105]
[1759491383136,0.00268285,4479.6,4479.5,9.3128]
[1759491383937,0.40145,4480.6,4480.5,0.88]
[1759491384241,0.93355,4480.6,4480.5,1.105]
[1759491384736,0.93355,4480.6,4480.5,0.88]
[1759491384935,0.93644446,4480.6,4480.5,1.10789077]
[1759491385634,1.13824446,4480.6,4480.5,1.10789077]
[1759491387434,0.22229446,4480.6,4480.5,1.10789077]
[1759491387738,0.00289446,4480.6,4480.5,1.10789077]
[1759491390141,0.00289446,4480.6,4480.5,0.88289077]
[1759491390336,0.00289446,4480.6,4480.5,1.10789077]
[1759491395038,0.00289446,4480.6,4480.5,1.50934077]
[1759491396938,0.00289446,4480.6,4480.5,1.28434077]
[1759491397142,0.00289446,4480.6,4480.5,1.50934077]
[1759491397842,0.52779446,4480.6,4480.5,1.28434077]
[1759491398238,0.74409446,4480.6,4480.5,0.74939077]
[1759491398538,0.74409446,4480.6,4480.5,0.97439077]
[1759491399837,0.74409446,4480.6,4480.5,0.74939077]
[1759491400034,0.74409446,4480.6,4480.5,0.97439077]
[1759491400946,0.74409446,4480.6,4480.5,1.50064077]
[1759491401643,0.52779446,4480.6,4480.5,1.50064077]
[1759491402046,0.52779446,4480.6,4480.5,1.09919077]
[1759491402748,0.74409446,4480.6,4480.5,1.09919077]
[1759491403347,0.74409446,4480.6,4480.5,0.74939077]
[1759491403646,0.74409446,4480.6,4480.5,0.97439077]
[1759491405335,0.74409446,4480.6,4480.5,1.37584077]
[1759491405539,0.74409446,4480.6,4480.5,1.50064077]
[1759491405741,0.21959446,4480.6,4480.5,1.50064077]
[1759491406035,0.00289446,4480.6,4480.5,1.50064077]
[1759491407345,0.21959446,4480.6,4480.5,1.50064077]
[1759491409243,0.00289446,4480.6,4480.5,1.50064077]
[1759491415450,0.00289446,4480.6,4480.5,5.91183018]
[1759491415647,0.00289446,4480.6,4480.5,4.70844077]
[1759491416157,0.00289446,4480.6,4480.5,9.70844077]
[1759491418540,0.00289446,4480.6,4480.5,4.48344077]
[1759491418741,0.00289446,4480.6,4480.5,39.52344077]
[1759491419848,0.00289446,4480.6,4480.5,0.87419077]
[1759491420047,0.52779446,4480.6,4480.5,2.70435424]
[1759491420753,0.00289446,4480.6,4480.5,1.50064077]
[1759491424355,0.54179446,4480.6,4480.5,0.87419077]
[1759491424551,0.00289446,4480.6,4480.5,1.50064077]
[1759491424759,0.00289446,4480.6,4480.5,4.70844077]
[1759491426362,0.21789446,4480.6,4480.5,1.27564077]
[1759491426551,0.54009446,4480.6,4480.5,1.50064077]
[1759491426751,0.54009446,4480.6,4480.5,1.09919077]
[1759491427153,0.54009446,4480.6,4480.5,0.87419077]
[1759491427360,0.76179446,4480.6,4480.5,2.30272242]
[1759491428061,0.76179446,4480.6,4480.5,1.09919077]
[1759491428562,0.76179446,4480.6,4480.5,0.97439077]
[1759491429561,0.76179446,4480.6,4480.5,0.74939077]
[1759491429862,0.76179446,4480.6,4480.5,0.97439077]
[1759491430258,0.76179446,4480.6,4480.5,0.74939077]
[1759491430459,6.21877323,4480.6,4480.5,0.00289077]
[1759491430764,6.21877323,4480.6,4480.5,0.22789077]
[1759491432363,6.21877323,4480.6,4480.5,0.00289077]
[1759491432364,6.62022323,4480.6,4480.5,0.00289077]
[1759491432565,6.62022323,4480.6,4480.5,0.22789077]
[1759491433966,6.62022323,4480.6,4480.5,0.00289077]
[1759491435766,6.62022323,4480.6,4480.5,7.7e-07]
[1759491436067,1.1605,4478.9,4478.8,0.4352]
[1759491436266,1.1605,4478.9,4478.8,0.6602]
[1759491436460,1.1605,4478.9,4478.8,0.9954]
[1759491436968,1.1605,4478.9,4478.8,0.99794877]
[1759491437874,1.1605,4478.9,4478.8,0.00254877]
[1759491438072,1.1605,4478.9,4478.8,0.22754877]
[1759491440076,1.1605,4478.9,4478.8,0.00254877]
[1759491440375,6.1605,4478.9,4478.8,0.00254877]
[1759491442279,1.1605,4478.9,4478.8,0.77294877]
[1759491445278,1.1605,4478.9,4478.8,0.55234877]
[1759491446081,1.1605,4478.9,4478.8,0.77294877]
[1759491448378,0.9388,4478.9,4478.8,0.77294877]
[1759491448578,0.9225,4478.9,4478.8,0.77294877]
[1759491450885,1.1331,4478.9,4478.8,0.77294877]
[1759491461782,0.6133,4478.9,4478.8,0.77294877]
[1759491461989,0.9213,4478.9,4478.8,0.77294877]
[1759491466496,1.1309,4478.9,4478.8,0.98394877]
[1759491468092,1.58675401,4478.9,4478.8,0.98394877]
[1759491469692,1.18515401,4478.9,4478.8,0.98394877]
[1759491469905,0.97555401,4478.9,4478.8,0.98394877]
[1759491471198,1.37715401,4478.9,4478.8,0.98394877]
[1759491471598,0.9213,4478.9,4478.8,0.98394877]
[1759491471794,0.9213,4478.9,4478.8,1.38555877]
[1759491472993,0.9213,4478.9,4478.8,0.98394877]
[1759491473598,1.1309,4478.9,4478.8,0.98394877]
[1759491475901,1.1309,4478.9,4478.8,0.75894877]
[1759491476103,1.1309,4478.9,4478.8,0.98394877]
[1759491478102,1.1309,4478.9,4478.8,2.18748042]
[1759491481301,1.1309,4478.9,4478.8,1.20608042]
[1759491481612,1.1309,4478.9,4478.8,0.22754877]
[1759491481804,1.1309,4478.9,4478.8,0.00254877]
[1759491482004,1.1309,4478.9,4478.8,0.22754877]
[1759491482506,1.58664541,4478.9,4478.8,0.22754877]
[1759491482807,1.1309,4478.9,4478.8,0.22754877]
[1759491487610,1.58651893,4478.9,4478.8,0.00254877]
[1759491493917,0.40165,4478.3,4478.2,1.20353165]
[1759491494117,1.14226,4478.2,4478.1,0.225]
[1759491495018,1.14226,4478.2,4478.1,0.00221855]
[1759491496231,1.14226,4478.2,4478.1,0.50781855]
[1759491500732,1.14226,4478.2,4478.1,0.73281855]
[1759491504831,0.93006,4478.2,4478.1,0.93571855]
[1759491505031,0.40166,4478.2,4478.1,0.93571855]
[1759491505330,0.93006,4478.2,4478.1,0.93571855]
[1759491507032,1.14226,4478.2,4478.1,0.00221855]
[1759491507336,1.15353,4477.4,4477.2,1.53063165]
[1759491507534,4.03593,4477.4,4477.3,0.225]
[1759491507930,4.36133,4477.4,4477.3,0.7597]
[1759491508133,4.36403865,4477.4,4477.3,0.9689793]
[1759491511637,4.36403865,4477.4,4477.3,0.7624793]
[1759491514437,4.36403865,4477.4,4477.3,0.9689793]
[1759491514637,3.21050865,4477.4,4477.3,1.3707193]
[1759491514839,0.00270865,4477.4,4477.3,9.5785193]
[1759491521942,0.00270865,4477.4,4477.3,4.3535193]
[1759491522235,0.00270865,4477.4,4477.3,4.5785193]
[1759491525844,0.00270865,4477.4,4477.3,4.3535193]
[1759491526045,0.00270865,4477.4,4477.3,4.5785193]
[1759491528248,0.00270865,4477.4,4477.3,6.18155127]
[1759491532344,0.00270865,4477.4,4477.3,4.5785193]
[1759491533444,0.00270865,4477.4,4477.3,6.18155127]
[1759491535453,0.00270865,4477.4,4477.3,5.95655127]
[1759491535647,0.00270865,4477.4,4477.3,6.18155127]
[1759491536043,0.00270865,4477.4,4477.3,5.95655127]
[1759491536248,0.51560865,4477.4,4477.3,6.18155127]
[1759491536447,0.00270865,4477.4,4477.3,6.18155127]
[1759491539456,0.00270865,4477.4,4477.3,4.5785193]
[1759491543756,0.00270865,4477.4,4477.3,4.3535193]
[1759491543957,0.00270865,4477.4,4477.3,4.5785193]
[1759491547551,3.2078,4478.4,4477.3,4.5785193]
[1759491547552,3.2078,4478.4,4478.3,0.72235]
[1759491547754,0.93071,4478.8,4478.7,0.4258]
[1759491547953,0.93071,4478.8,4478.7,0.9715]
[1759491548462,0.53104145,4478.8,4478.7,1.37312]
[1759491548955,0.00194145,4478.8,4478.7,1.37312]
[1759491549358,0.53104145,4478.8,4478.7,1.37312]
[1759491550052,0.20794145,4478.8,4478.7,1.37312]
[1759491550253,0.20794145,4478.8,4478.7,2.57613665]
[1759491550559,0.00194145,4478.8,4478.7,1.37312]
[1759491551362,0.00194145,4478.8,4478.7,2.57567924]
[1759491554262,0.00194145,4478.8,4478.7,1.37312]
[1759491556168,0.00194145,4478.8,4478.7,1.14812]
[1759491556368,0.93265145,4478.8,4478.7,0.9715]
[1759491556562,0.93265145,4478.8,4478.7,1.37312]
[1759491557856,0.60955145,4478.8,4478.7,1.37312]
[1759491558464,0.00194145,4478.8,4478.7,1.37312]
[1759491558675,0.40355145,4478.8,4478.7,1.37312]
[1759491560966,0.60955145,4478.8,4478.7,1.37312]
[1759491561268,0.93265145,4478.8,4478.7,1.37312]
[1759491564375,0.93265145,4478.8,4478.7,1.14812]
[1759491564775,0.93265145,4478.8,4478.7,1.37312]
[1759491565081,0.00194145,4478.8,4478.7,1.14812]
[1759491565476,0.00194145,4478.8,4478.7,1.37312]
[1759491565677,0.40355145,4478.8,4478.7,1.37312]
[1759491567483,0.00194145,4478.8,4478.7,1.37312]
[1759491567676,0.40355145,4478.8,4478.7,1.37312]
[1759491571286,0.00194145,4478.8,4478.7,1.37312]
[1759491571892,3.2078,4479.4,4479.3,0.40156]
[1759491572078,0.1333,4480.5,4479.9,0.2124]
[1759491572079,3.9392,4480.0,4479.9,0.2124]
[1759491572282,4.1438,4480.0,4479.9,0.9845]
[1759491572593,4.1438,4480.0,4479.9,1.38601]
[1759491572982,3.7445055,4480.0,4479.9,1.38601]
[1759491573286,0.5367055,4480.0,4479.9,1.38601]
[1759491573490,0.0022055,4480.0,4479.9,1.38601]
[1759491575695,0.0022055,4480.0,4479.9,1.16101]
[1759491575891,0.0022055,4480.0,4479.9,36.21201]
[1759491577797,0.0022055,4480.0,4479.9,1.16101]
[1759491578090,0.8802055,4480.0,4479.8,0.40152]
[1759491578290,0.8802055,4480.0,4479.9,0.225]
[1759491581891,1.2817055,4480.0,4479.9,0.62651]
[1759491582086,1.2817055,4480.0,4479.9,0.95981]
[1759491583196,1.2817055,4480.0,4479.9,1.17221]
[1759491591202,1.2817055,4480.0,4479.9,0.7707]
[1759491592007,1.2817055,4480.0,4479.9,0.5457]
[1759491592303,1.2817055,4480.0,4479.9,1.17221]
[1759491601311,1.2817055,4480.0,4479.9,2.37256982]
[1759491602710,1.1489055,4480.0,4479.9,2.57946982]
[1759491603011,0.7474055,4480.0,4479.9,2.57946982]
[1759491603315,1.1489055,4480.0,4479.9,1.37911]
[1759491603813,1.1489055,4480.0,4479.9,2.35814292]
[1759491604012,1.1489055,4480.0,4479.9,2.58314292]
[1759491604412,1.1489055,4480.0,4479.9,1.37911]
[1759491604614,1.1489055,4480.0,4479.9,2.58321312]
[1759491605313,1.1489055,4480.0,4479.9,1.37911]
[1759491606211,0.4037055,4480.0,4479.9,1.37911]
[1759491606414,0.4037055,4480.0,4479.9,0.9776]
[1759491606714,0.9492055,4480.0,4479.9,1.37911]